[Event "Early-Titled-Tuesday-Blitz-March-26-2024"]
[Site "Chess.com"]
[Date "2024.03.26"]
[Round "8"]
[White "alekroth65"]
[Black "MikeSailer"]
[Result "1-0"]
[WhiteElo "2389"]
[BlackElo "2092"]
[TimeControl "180+1"]
[EndTime "9:24:25 PDT"]
[Termination "alekroth65 won on time"]

1. d4 {[%clk 0:03:00.9]} 1... d5 {[%clk 0:02:59.5]} 2. c4 {[%clk 0:03:00.4]}
2... Bf5 {[%clk 0:02:58.6]} 3. cxd5 {[%clk 0:02:57.8]} 3... Bxb1 {[%clk
0:02:57.5]} 4. Qa4+ {[%clk 0:02:57.1]} 4... c6 {[%clk 0:02:58]} 5. Rxb1 {[%clk
0:02:53.8]} 5... Qxd5 {[%clk 0:02:57.8]} 6. f3 {[%clk 0:02:49]} 6... e5 {[%clk
0:02:50.8]} 7. dxe5 {[%clk 0:02:45.8]} 7... Na6 {[%clk 0:02:28.1]} 8. e4 {[%clk
0:02:36.2]} 8... Nc5 {[%clk 0:01:13.9]} 9. exd5 {[%clk 0:02:29.7]} 9... Nxa4
{[%clk 0:01:13.2]} 10. d6 {[%clk 0:02:17]} 10... f6 {[%clk 0:01:05.8]} 11. f4
{[%clk 0:02:15]} 11... g5 {[%clk 0:01:03.7]} 12. g3 {[%clk 0:02:09.9]} 12...
gxf4 {[%clk 0:01:01.7]} 13. Bxf4 {[%clk 0:02:00]} 13... Nb6 {[%clk 0:00:27.4]}
14. e6 {[%clk 0:01:41.9]} 14... Nd5 {[%clk 0:00:26.8]} 15. e7 {[%clk 0:01:39.8]}
15... Bh6 {[%clk 0:00:10.6]} 16. Bxh6 {[%clk 0:01:20.7]} 16... Nxh6 {[%clk
0:00:11.2]} 17. Rd1 {[%clk 0:01:20]} 17... Kd7 {[%clk 0:00:11.1]} 18. Bg2 {[%clk
0:01:06.4]} 18... Kxd6 {[%clk 0:00:09.3]} 19. Ne2 {[%clk 0:01:06.3]} 19... Nf5
{[%clk 0:00:05.6]} 20. Bxd5 {[%clk 0:00:52.2]} 20... cxd5 {[%clk 0:00:05]} 21.
Nf4 {[%clk 0:00:51.9]} 21... Nxe7 {[%clk 0:00:04.6]} 22. Kf2 {[%clk 0:00:50.3]}
22... Rac8 {[%clk 0:00:04.6]} 23. Rhe1 {[%clk 0:00:49.7]} 23... Rc2+ {[%clk
0:00:04.7]} 24. Kf3 {[%clk 0:00:49.8]} 24... Rhc8 {[%clk 0:00:03.7]} 25. Re6+
{[%clk 0:00:46.5]} 25... Kd7 {[%clk 0:00:03.8]} 26. Rxf6 {[%clk 0:00:46.5]}
26... Ke8 {[%clk 0:00:03.6]} 27. Re1 {[%clk 0:00:44.1]} 27... Rxb2 {[%clk
0:00:03.2]} 28. Nxd5 {[%clk 0:00:40.5]} 28... Rc3+ {[%clk 0:00:01.1]} 29. Nxc3
{[%clk 0:00:40]} 1-0

[Event "Early-Titled-Tuesday-Blitz-March-26-2024"]
[Site "Chess.com"]
[Date "2024.03.26"]
[Round "8"]
[White "Aural1011"]
[Black "rionelG"]
[Result "0-1"]
[WhiteElo "1674"]
[BlackElo "2205"]
[TimeControl "180+1"]
[EndTime "9:24:25 PDT"]
[Termination "rionelG won on time"]

1. d4 {[%clk 0:03:00.9]} 1... d5 {[%clk 0:02:57]} 2. c4 {[%clk 0:03:01.5]} 2...
e6 {[%clk 0:02:56]} 3. Nc3 {[%clk 0:03:01.7]} 3... Nf6 {[%clk 0:02:48.6]} 4.
cxd5 {[%clk 0:03:01.9]} 4... exd5 {[%clk 0:02:48.2]} 5. Bg5 {[%clk 0:03:02.5]}
5... c6 {[%clk 0:02:48.3]} 6. Nf3 {[%clk 0:02:56.2]} 6... Be7 {[%clk 0:02:46.5]}
7. Qc2 {[%clk 0:02:56.2]} 7... O-O {[%clk 0:02:46.8]} 8. e3 {[%clk 0:02:56.6]}
8... h6 {[%clk 0:02:47.2]} 9. Bh4 {[%clk 0:02:55.9]} 9... Ne4 {[%clk 0:02:47.4]}
10. Bxe7 {[%clk 0:02:40.1]} 10... Qxe7 {[%clk 0:02:48.3]} 11. Nxe4 {[%clk
0:02:40.5]} 11... dxe4 {[%clk 0:02:47.9]} 12. Ne5 {[%clk 0:02:05.1]} 12... Nd7
{[%clk 0:02:43.2]} 13. Nxd7 {[%clk 0:01:31.4]} 13... Bxd7 {[%clk 0:02:44.1]} 14.
a3 {[%clk 0:01:29]} 14... Rac8 {[%clk 0:02:36.5]} 15. Bc4 {[%clk 0:01:24.5]}
15... c5 {[%clk 0:02:35.9]} 16. Qb3 {[%clk 0:01:18.6]} 16... cxd4 {[%clk
0:02:33.5]} 17. exd4 {[%clk 0:01:19.5]} 17... b5 {[%clk 0:02:25.5]} 18. Bd5
{[%clk 0:01:08.4]} 18... Qf6 {[%clk 0:01:41]} 19. O-O {[%clk 0:01:00.9]} 19...
Qxd4 {[%clk 0:01:40.6]} 20. Rad1 {[%clk 0:01:00.2]} 20... Qe5 {[%clk 0:01:38.9]}
21. Rfe1 {[%clk 0:00:55.7]} 21... Bf5 {[%clk 0:01:34.7]} 22. f3 {[%clk
0:00:46.5]} 22... e3 {[%clk 0:01:26.3]} 23. Rxe3 {[%clk 0:00:39.2]} 23... Qf6
{[%clk 0:01:21.7]} 24. Rde1 {[%clk 0:00:27.2]} 24... Rc2 {[%clk 0:01:09.9]} 25.
Re8 {[%clk 0:00:09.3]} 25... Rxe8 {[%clk 0:01:04.2]} 26. Rxe8+ {[%clk
0:00:08.8]} 26... Kh7 {[%clk 0:01:04.7]} 27. Bxf7 {[%clk 0:00:06.6]} 27... Qd4+
{[%clk 0:01:02.1]} 28. Qe3 {[%clk 0:00:05.3]} 28... Qxb2 {[%clk 0:00:53]} 29.
Bg8+ {[%clk 0:00:04.2]} 29... Kh8 {[%clk 0:00:47]} 30. Bd5+ {[%clk 0:00:02.9]}
30... Kh7 {[%clk 0:00:47.4]} 31. Be4 {[%clk 0:00:01.7]} 31... Rc1+ {[%clk
0:00:44.6]} 0-1

[Event "Early-Titled-Tuesday-Blitz-March-26-2024"]
[Site "Chess.com"]
[Date "2024.03.26"]
[Round "8"]
[White "bazar-wokzal"]
[Black "Korchmar_Vasiliy"]
[Result "1-0"]
[WhiteElo "2584"]
[BlackElo "2692"]
[TimeControl "180+1"]
[EndTime "9:24:30 PDT"]
[Termination "bazar-wokzal won on time"]

1. e4 {[%clk 0:03:00.9]} 1... c5 {[%clk 0:02:58.6]} 2. c3 {[%clk 0:03:00.8]}
2... d5 {[%clk 0:02:59]} 3. exd5 {[%clk 0:03:01]} 3... Nf6 {[%clk 0:02:59.7]} 4.
Bb5+ {[%clk 0:03:00.3]} 4... Nbd7 {[%clk 0:02:58.5]} 5. c4 {[%clk 0:02:59.7]}
5... a6 {[%clk 0:02:56.8]} 6. Bxd7+ {[%clk 0:02:59.8]} 6... Bxd7 {[%clk
0:02:57.5]} 7. Nc3 {[%clk 0:02:58.8]} 7... e6 {[%clk 0:02:55.2]} 8. Qe2 {[%clk
0:02:59]} 8... Bd6 {[%clk 0:02:46.6]} 9. Nf3 {[%clk 0:02:58.2]} 9... O-O {[%clk
0:02:46.5]} 10. dxe6 {[%clk 0:02:58.3]} 10... fxe6 {[%clk 0:02:40]} 11. O-O
{[%clk 0:02:57.2]} 11... Qc7 {[%clk 0:02:40.5]} 12. d3 {[%clk 0:02:54.8]} 12...
Bc6 {[%clk 0:02:33.2]} 13. Ne4 {[%clk 0:02:54]} 13... Nxe4 {[%clk 0:01:53.6]}
14. dxe4 {[%clk 0:02:53.8]} 14... h6 {[%clk 0:01:52]} 15. Bd2 {[%clk 0:02:45.4]}
15... Rf7 {[%clk 0:01:47.8]} 16. Rad1 {[%clk 0:02:35.1]} 16... Raf8 {[%clk
0:01:46.4]} 17. Bc3 {[%clk 0:02:35.1]} 17... b5 {[%clk 0:01:40.6]} 18. b3 {[%clk
0:02:34]} 18... Bf4 {[%clk 0:01:26.7]} 19. Rd3 {[%clk 0:02:27.9]} 19... bxc4
{[%clk 0:01:23.6]} 20. bxc4 {[%clk 0:02:27.7]} 20... Qb7 {[%clk 0:01:20.1]} 21.
Re1 {[%clk 0:02:24.6]} 21... Bb8 {[%clk 0:01:08.5]} 22. Ne5 {[%clk 0:02:20.7]}
22... Rxf2 {[%clk 0:00:56.2]} 23. Qxf2 {[%clk 0:01:47.2]} 23... Rxf2 {[%clk
0:00:55.3]} 24. Kxf2 {[%clk 0:01:47.5]} 24... Bxe4 {[%clk 0:00:52.4]} 25. Rd7
{[%clk 0:01:38.3]} 25... Qc8 {[%clk 0:00:52.3]} 26. Red1 {[%clk 0:01:12.3]}
26... Bc7 {[%clk 0:00:37]} 27. Ng4 {[%clk 0:00:54.2]} 27... e5 {[%clk
0:00:19.2]} 28. Nxe5 {[%clk 0:00:47.8]} 28... Bf5 {[%clk 0:00:10]} 29. Re7
{[%clk 0:00:39.9]} 29... Kh7 {[%clk 0:00:01.2]} 30. Nf3 {[%clk 0:00:35.7]} 1-0

[Event "Early-Titled-Tuesday-Blitz-March-26-2024"]
[Site "Chess.com"]
[Date "2024.03.26"]
[Round "8"]
[White "Pertinhez76"]
[Black "MikeWizard"]
[Result "1/2-1/2"]
[WhiteElo "2128"]
[BlackElo "2089"]
[TimeControl "180+1"]
[EndTime "9:24:32 PDT"]
[Termination "Game drawn by repetition"]

1. e4 {[%clk 0:01:25.6]} 1... d6 {[%clk 0:02:59.1]} 2. d4 {[%clk 0:01:25.2]}
2... Nf6 {[%clk 0:02:57.8]} 3. Nc3 {[%clk 0:01:26.1]} 3... Nbd7 {[%clk
0:02:57.5]} 4. Be3 {[%clk 0:01:26.6]} 4... e5 {[%clk 0:02:56.9]} 5. f3 {[%clk
0:01:27.1]} 5... g6 {[%clk 0:02:51.5]} 6. Qd2 {[%clk 0:01:27]} 6... Bg7 {[%clk
0:02:51.2]} 7. O-O-O {[%clk 0:01:27.2]} 7... O-O {[%clk 0:02:46.2]} 8. Nge2
{[%clk 0:01:25.1]} 8... a6 {[%clk 0:02:43.6]} 9. g4 {[%clk 0:01:22.2]} 9... b5
{[%clk 0:02:42.4]} 10. h4 {[%clk 0:01:20.1]} 10... exd4 {[%clk 0:02:38.8]} 11.
Nxd4 {[%clk 0:01:13.7]} 11... Ne5 {[%clk 0:02:37.8]} 12. Be2 {[%clk 0:01:01.3]}
12... c5 {[%clk 0:02:21]} 13. Nb3 {[%clk 0:01:00.1]} 13... c4 {[%clk 0:02:19.3]}
14. Nd4 {[%clk 0:00:59.5]} 14... Qa5 {[%clk 0:02:17.6]} 15. Kb1 {[%clk
0:00:57.9]} 15... b4 {[%clk 0:02:12.7]} 16. Nd5 {[%clk 0:00:56]} 16... Nxd5
{[%clk 0:02:12.5]} 17. exd5 {[%clk 0:00:56.9]} 17... c3 {[%clk 0:02:12.6]} 18.
Qc1 {[%clk 0:00:53]} 18... Bd7 {[%clk 0:02:03.1]} 19. h5 {[%clk 0:00:49.8]}
19... Bb5 {[%clk 0:01:50.4]} 20. Bh6 {[%clk 0:00:36.7]} 20... Bxe2 {[%clk
0:01:48.1]} 21. Bxg7 {[%clk 0:00:31.8]} 21... Kxg7 {[%clk 0:01:37.3]} 22. hxg6
{[%clk 0:00:31.2]} 22... fxg6 {[%clk 0:01:26]} 23. Ne6+ {[%clk 0:00:29.5]} 23...
Kf7 {[%clk 0:01:16.3]} 24. Rxh7+ {[%clk 0:00:25.7]} 24... Ke8 {[%clk 0:01:15.4]}
25. Qg5 {[%clk 0:00:24]} 25... Nf7 {[%clk 0:01:11.1]} 26. Re1 {[%clk 0:00:19]}
26... Nxg5 {[%clk 0:00:57.3]} 27. Nxg5 {[%clk 0:00:15.1]} 27... Qb5 {[%clk
0:00:51.2]} 28. Ne6 {[%clk 0:00:12.9]} 28... cxb2 {[%clk 0:00:45.7]} 29. Nc7+
{[%clk 0:00:11.3]} 29... Kd8 {[%clk 0:00:45.9]} 30. Nxb5 {[%clk 0:00:08.9]}
30... axb5 {[%clk 0:00:44.7]} 31. Rxe2 {[%clk 0:00:08.4]} 31... Ra3 {[%clk
0:00:41.3]} 32. Ree7 {[%clk 0:00:08.3]} 32... Raxf3 {[%clk 0:00:40.4]} 33. Rd7+
{[%clk 0:00:08.4]} 33... Kc8 {[%clk 0:00:40.3]} 34. Rc7+ {[%clk 0:00:09]} 34...
Kb8 {[%clk 0:00:40.6]} 35. Rb7+ {[%clk 0:00:09.6]} 35... Ka8 {[%clk 0:00:40.8]}
36. Ra7+ {[%clk 0:00:10]} 36... Kb8 {[%clk 0:00:39.7]} 37. Rab7+ {[%clk
0:00:10.8]} 37... Ka8 {[%clk 0:00:39.6]} 38. Ra7+ {[%clk 0:00:11]} 38... Kb8
{[%clk 0:00:39.8]} 39. Rab7+ {[%clk 0:00:11.7]} 1/2-1/2

[Event "Early-Titled-Tuesday-Blitz-March-26-2024"]
[Site "Chess.com"]
[Date "2024.03.26"]
[Round "8"]
[White "Yuruultei"]
[Black "The_Straightforward_Rook"]
[Result "1-0"]
[WhiteElo "2257"]
[BlackElo "2395"]
[TimeControl "180+1"]
[EndTime "9:24:40 PDT"]
[Termination "Yuruultei won by checkmate"]

1. d4 {[%clk 0:02:56.3]} 1... d5 {[%clk 0:02:45.9]} 2. c4 {[%clk 0:02:54.5]}
2... c6 {[%clk 0:02:45.8]} 3. Nc3 {[%clk 0:02:53.1]} 3... Nf6 {[%clk 0:02:45.1]}
4. Nf3 {[%clk 0:02:53.6]} 4... e6 {[%clk 0:02:44.3]} 5. Bg5 {[%clk 0:02:52]}
5... h6 {[%clk 0:02:44]} 6. Bh4 {[%clk 0:02:47.5]} 6... dxc4 {[%clk 0:02:43.4]}
7. e4 {[%clk 0:02:47.2]} 7... g5 {[%clk 0:02:43.2]} 8. Bg3 {[%clk 0:02:44.8]}
8... b5 {[%clk 0:02:43.9]} 9. e5 {[%clk 0:02:34.6]} 9... Nh5 {[%clk 0:02:38.2]}
10. Ne4 {[%clk 0:02:33]} 10... Nd7 {[%clk 0:02:33.3]} 11. h4 {[%clk 0:02:20.3]}
11... g4 {[%clk 0:02:28.6]} 12. Nfd2 {[%clk 0:02:10.9]} 12... Rg8 {[%clk
0:02:21.5]} 13. Be2 {[%clk 0:02:04.4]} 13... Nxg3 {[%clk 0:02:18]} 14. Nxg3
{[%clk 0:02:02.1]} 14... Qb6 {[%clk 0:02:13.5]} 15. Nde4 {[%clk 0:02:00]} 15...
Bb4+ {[%clk 0:02:04.5]} 16. Nc3 {[%clk 0:01:56]} 16... c5 {[%clk 0:01:38.1]} 17.
dxc5 {[%clk 0:01:33.8]} 17... Nxc5 {[%clk 0:01:34.5]} 18. O-O {[%clk 0:01:29.9]}
18... Bb7 {[%clk 0:01:33.5]} 19. Nh5 {[%clk 0:01:26.7]} 19... Bxc3 {[%clk
0:01:15.6]} 20. Nf6+ {[%clk 0:01:22.8]} 20... Kf8 {[%clk 0:01:10.4]} 21. bxc3
{[%clk 0:01:23.7]} 21... Rd8 {[%clk 0:01:09.3]} 22. Qc2 {[%clk 0:01:20.4]} 22...
Rg7 {[%clk 0:01:08.6]} 23. Qc1 {[%clk 0:01:15.2]} 23... Qc6 {[%clk 0:01:03.2]}
24. f3 {[%clk 0:01:09.9]} 24... Rg6 {[%clk 0:00:59.3]} 25. h5 {[%clk 0:01:09.3]}
25... Rg5 {[%clk 0:00:55.3]} 26. Nh7+ {[%clk 0:01:07.9]} 26... Ke8 {[%clk
0:00:26.5]} 27. Nxg5 {[%clk 0:01:08.8]} 27... hxg5 {[%clk 0:00:27]} 28. Qxg5
{[%clk 0:01:07.9]} 28... Nd3 {[%clk 0:00:27.9]} 29. Rad1 {[%clk 0:01:02.6]}
29... Qc5+ {[%clk 0:00:19.3]} 30. Kh2 {[%clk 0:00:59.2]} 30... Qxe5+ {[%clk
0:00:15.9]} 31. Qxe5 {[%clk 0:00:58.4]} 31... Nxe5 {[%clk 0:00:16.8]} 32. Rxd8+
{[%clk 0:00:57.9]} 32... Kxd8 {[%clk 0:00:17.7]} 33. fxg4 {[%clk 0:00:57.7]}
33... Ke7 {[%clk 0:00:18.2]} 34. h6 {[%clk 0:00:57.5]} 34... Ng6 {[%clk
0:00:17.4]} 35. Bf3 {[%clk 0:00:56.2]} 35... Bc8 {[%clk 0:00:13.9]} 36. Be4
{[%clk 0:00:55.6]} 36... Ne5 {[%clk 0:00:10]} 37. h7 {[%clk 0:00:55.2]} 37...
Nxg4+ {[%clk 0:00:10.3]} 38. Kg1 {[%clk 0:00:53.5]} 38... f5 {[%clk 0:00:08.6]}
39. h8=Q {[%clk 0:00:52.4]} 39... fxe4 {[%clk 0:00:09.5]} 40. Qg7+ {[%clk
0:00:52.9]} 40... Kd6 {[%clk 0:00:10.2]} 41. Qxg4 {[%clk 0:00:53.8]} 41... e5
{[%clk 0:00:09.9]} 42. Qxc8 {[%clk 0:00:53.8]} 42... Kd5 {[%clk 0:00:10]} 43.
Rd1# {[%clk 0:00:53]} 1-0

[Event "Early-Titled-Tuesday-Blitz-March-26-2024"]
[Site "Chess.com"]
[Date "2024.03.26"]
[Round "8"]
[White "Gennady_Kozlov"]
[Black "Ticoluis"]
[Result "0-1"]
[WhiteElo "2651"]
[BlackElo "2531"]
[TimeControl "180+1"]
[EndTime "9:24:55 PDT"]
[Termination "Ticoluis won by resignation"]

1. b3 {[%clk 0:03:00.9]} 1... Nf6 {[%clk 0:02:58.6]} 2. Bb2 {[%clk 0:03:00.9]}
2... g6 {[%clk 0:02:58.5]} 3. e3 {[%clk 0:03:01.3]} 3... Bg7 {[%clk 0:02:58.5]}
4. f4 {[%clk 0:03:02.2]} 4... d5 {[%clk 0:02:58.2]} 5. Nf3 {[%clk 0:03:02.6]}
5... O-O {[%clk 0:02:58.4]} 6. Be2 {[%clk 0:03:03]} 6... c5 {[%clk 0:02:58.9]}
7. O-O {[%clk 0:03:03.1]} 7... Nc6 {[%clk 0:02:59.1]} 8. Ne5 {[%clk 0:03:03.7]}
8... d4 {[%clk 0:02:57.3]} 9. Bf3 {[%clk 0:03:00.4]} 9... Nxe5 {[%clk
0:02:53.4]} 10. fxe5 {[%clk 0:02:59.8]} 10... Nd7 {[%clk 0:02:53.1]} 11. exd4
{[%clk 0:02:59.3]} 11... cxd4 {[%clk 0:02:52.5]} 12. Bxd4 {[%clk 0:02:57.1]}
12... Nxe5 {[%clk 0:02:52.6]} 13. Bc3 {[%clk 0:02:57.2]} 13... Qb6+ {[%clk
0:02:49.4]} 14. Kh1 {[%clk 0:02:56.1]} 14... Be6 {[%clk 0:02:45.1]} 15. Qe2
{[%clk 0:02:54.6]} 15... Nxf3 {[%clk 0:02:39.9]} 16. Qxf3 {[%clk 0:02:55.5]}
16... f6 {[%clk 0:02:34.2]} 17. a4 {[%clk 0:02:37.6]} 17... Rfd8 {[%clk
0:02:29.4]} 18. Na3 {[%clk 0:02:36]} 18... Bd5 {[%clk 0:02:25.6]} 19. Qe2 {[%clk
0:02:33.7]} 19... e5 {[%clk 0:02:20.7]} 20. a5 {[%clk 0:02:22.6]} 20... Qc6
{[%clk 0:02:17.8]} 21. b4 {[%clk 0:02:19.8]} 21... a6 {[%clk 0:02:15.4]} 22. Bb2
{[%clk 0:02:14.5]} 22... Rac8 {[%clk 0:01:50.6]} 23. d3 {[%clk 0:02:12.3]} 23...
e4 {[%clk 0:01:48.6]} 24. dxe4 {[%clk 0:02:06.8]} 24... Bxe4 {[%clk 0:01:46.3]}
25. Rfe1 {[%clk 0:02:04.3]} 25... f5 {[%clk 0:01:27.4]} 26. Bxg7 {[%clk
0:01:58.4]} 26... Kxg7 {[%clk 0:01:27.7]} 27. c4 {[%clk 0:01:58.3]} 27... Qf6
{[%clk 0:01:24.8]} 28. c5 {[%clk 0:01:52.4]} 28... Qg5 {[%clk 0:01:10.1]} 29.
Nc4 {[%clk 0:01:45.2]} 29... Rd4 {[%clk 0:01:09.4]} 30. Qb2 {[%clk 0:01:35.3]}
30... Kh6 {[%clk 0:01:06.3]} 31. Rxe4 {[%clk 0:01:26.2]} 31... Rxe4 {[%clk
0:00:53.3]} 32. Nd6 {[%clk 0:01:25]} 32... Rc7 {[%clk 0:00:49.5]} 33. Nxe4
{[%clk 0:01:17.1]} 33... fxe4 {[%clk 0:00:50]} 34. Re1 {[%clk 0:01:16.7]} 34...
Re7 {[%clk 0:00:48.8]} 35. Qd4 {[%clk 0:01:17.1]} 35... e3 {[%clk 0:00:47.6]}
36. g3 {[%clk 0:01:13.9]} 36... Qf5 {[%clk 0:00:40.7]} 37. Qh4+ {[%clk
0:01:11.2]} 37... Qh5 {[%clk 0:00:37.5]} 38. Qf4+ {[%clk 0:01:09.5]} 38... Kg7
{[%clk 0:00:28.7]} 39. Rf1 {[%clk 0:01:03.4]} 39... Qd5+ {[%clk 0:00:27.2]} 40.
Kg1 {[%clk 0:01:02.9]} 40... Re8 {[%clk 0:00:24.5]} 41. Qf6+ {[%clk 0:00:56.7]}
41... Kg8 {[%clk 0:00:23.8]} 42. Re1 {[%clk 0:00:56.1]} 42... Qd2 {[%clk
0:00:22.2]} 43. Qf1 {[%clk 0:00:55.1]} 43... e2 {[%clk 0:00:20.7]} 44. Qf2
{[%clk 0:00:55]} 44... Qd3 {[%clk 0:00:21.1]} 45. Qg2 {[%clk 0:00:47.9]} 45...
Qe3+ {[%clk 0:00:19.9]} 46. Qf2 {[%clk 0:00:47.9]} 46... Qd3 {[%clk 0:00:19.9]}
47. Qf4 {[%clk 0:00:46.5]} 47... Rf8 {[%clk 0:00:17.8]} 48. Qxf8+ {[%clk
0:00:40.8]} 48... Kxf8 {[%clk 0:00:16.7]} 49. Kf2 {[%clk 0:00:41.7]} 49... Qd4+
{[%clk 0:00:16.4]} 50. Kxe2 {[%clk 0:00:40.6]} 50... Qxb4 {[%clk 0:00:17]} 0-1

[Event "Early-Titled-Tuesday-Blitz-March-26-2024"]
[Site "Chess.com"]
[Date "2024.03.26"]
[Round "8"]
[White "alexrustemov"]
[Black "vasblesk"]
[Result "1-0"]
[WhiteElo "2938"]
[BlackElo "2786"]
[TimeControl "180+1"]
[EndTime "9:24:57 PDT"]
[Termination "alexrustemov won by checkmate"]

1. d4 {[%clk 0:03:00.3]} 1... Nf6 {[%clk 0:02:59]} 2. c4 {[%clk 0:03:00.7]} 2...
c6 {[%clk 0:02:56.7]} 3. Nc3 {[%clk 0:02:59.1]} 3... d5 {[%clk 0:02:56.8]} 4. e3
{[%clk 0:02:59.7]} 4... e6 {[%clk 0:02:56.6]} 5. Nf3 {[%clk 0:03:00.1]} 5...
Nbd7 {[%clk 0:02:55.8]} 6. Qc2 {[%clk 0:03:00.6]} 6... Bd6 {[%clk 0:02:53.7]} 7.
Bd2 {[%clk 0:03:01.1]} 7... O-O {[%clk 0:02:50.1]} 8. O-O-O {[%clk 0:03:01.7]}
8... dxc4 {[%clk 0:02:43.5]} 9. Bxc4 {[%clk 0:03:01.5]} 9... b5 {[%clk
0:02:44.2]} 10. Bd3 {[%clk 0:03:02.2]} 10... Bb7 {[%clk 0:02:40.2]} 11. e4
{[%clk 0:03:02.5]} 11... e5 {[%clk 0:02:37.2]} 12. dxe5 {[%clk 0:03:02.6]} 12...
Nxe5 {[%clk 0:02:38.1]} 13. Nxe5 {[%clk 0:03:03]} 13... Bxe5 {[%clk 0:02:39]}
14. f4 {[%clk 0:03:03.6]} 14... Bd4 {[%clk 0:02:30]} 15. e5 {[%clk 0:03:02.3]}
15... Nd5 {[%clk 0:02:22]} 16. Nxd5 {[%clk 0:02:49.4]} 16... Qxd5 {[%clk
0:02:14.2]} 17. Bxh7+ {[%clk 0:02:36.6]} 17... Kh8 {[%clk 0:02:13.5]} 18. Bc3
{[%clk 0:02:06.5]} 18... c5 {[%clk 0:02:09]} 19. Bf5 {[%clk 0:01:28.6]} 19...
Qxa2 {[%clk 0:01:47.7]} 20. Qd3 {[%clk 0:01:00.4]} 20... g6 {[%clk 0:01:47.1]}
21. e6 {[%clk 0:00:53.5]} 21... gxf5 {[%clk 0:01:06.2]} 22. Qh3+ {[%clk
0:00:48.7]} 22... Kg7 {[%clk 0:00:55.3]} 23. Qg3+ {[%clk 0:00:48.3]} 23... Kf6
{[%clk 0:00:40.6]} 24. Bxd4+ {[%clk 0:00:43.7]} 24... cxd4 {[%clk 0:00:34.4]}
25. Qg5+ {[%clk 0:00:39.9]} 25... Kxe6 {[%clk 0:00:33.5]} 26. Rhe1+ {[%clk
0:00:40.4]} 26... Kd5 {[%clk 0:00:06.4]} 27. Qxf5+ {[%clk 0:00:35.7]} 27... Kc4
{[%clk 0:00:06.4]} 28. Rxd4+ {[%clk 0:00:27]} 28... Kxd4 {[%clk 0:00:03]} 29.
Qe5+ {[%clk 0:00:18.7]} 29... Kc4 {[%clk 0:00:03.4]} 30. Qc3+ {[%clk 0:00:11]}
30... Kd5 {[%clk 0:00:03.5]} 31. Rd1+ {[%clk 0:00:10.4]} 31... Ke4 {[%clk
0:00:01.6]} 32. Qe5# {[%clk 0:00:11.3]} 1-0

[Event "Early-Titled-Tuesday-Blitz-March-26-2024"]
[Site "Chess.com"]
[Date "2024.03.26"]
[Round "8"]
[White "ContrVersia"]
[Black "kingofthenil"]
[Result "1-0"]
[WhiteElo "2919"]
[BlackElo "2777"]
[TimeControl "180+1"]
[EndTime "9:24:57 PDT"]
[Termination "ContrVersia won by resignation"]

1. Nf3 {[%clk 0:03:00.9]} 1... b6 {[%clk 0:02:55.5]} 2. g3 {[%clk 0:02:59.5]}
2... Bb7 {[%clk 0:02:55.9]} 3. Bg2 {[%clk 0:03:00.1]} 3... Nf6 {[%clk
0:02:55.6]} 4. O-O {[%clk 0:03:00.1]} 4... c5 {[%clk 0:02:53.2]} 5. c4 {[%clk
0:03:00]} 5... g6 {[%clk 0:02:52.7]} 6. b3 {[%clk 0:02:59]} 6... Bg7 {[%clk
0:02:52.5]} 7. Bb2 {[%clk 0:02:59.6]} 7... O-O {[%clk 0:02:52.5]} 8. e3 {[%clk
0:03:00.1]} 8... d5 {[%clk 0:02:50.5]} 9. Qe2 {[%clk 0:02:56.2]} 9... Nc6 {[%clk
0:02:46.6]} 10. d4 {[%clk 0:02:41.5]} 10... dxc4 {[%clk 0:02:23.7]} 11. bxc4
{[%clk 0:02:40.6]} 11... cxd4 {[%clk 0:02:21.9]} 12. exd4 {[%clk 0:02:40.7]}
12... e6 {[%clk 0:02:19]} 13. Nbd2 {[%clk 0:02:39.6]} 13... Qc7 {[%clk
0:02:02.7]} 14. Rac1 {[%clk 0:02:32.9]} 14... Rfd8 {[%clk 0:02:01.8]} 15. Rfe1
{[%clk 0:02:30]} 15... Rac8 {[%clk 0:02:01]} 16. Nb3 {[%clk 0:02:26.4]} 16...
Qb8 {[%clk 0:01:56]} 17. a4 {[%clk 0:02:20.2]} 17... Qa8 {[%clk 0:01:39]} 18. h4
{[%clk 0:01:27.3]} 18... Ne7 {[%clk 0:01:26.9]} 19. d5 {[%clk 0:01:22.7]} 19...
exd5 {[%clk 0:00:46.7]} 20. Qxe7 {[%clk 0:01:21.7]} 20... Rd7 {[%clk 0:00:47.3]}
21. Qe2 {[%clk 0:01:12.1]} 21... dxc4 {[%clk 0:00:47.4]} 22. Nbd2 {[%clk
0:01:12.1]} 22... Rxd2 {[%clk 0:00:38]} 23. Nxd2 {[%clk 0:00:43.2]} 23... Bxg2
{[%clk 0:00:38.9]} 24. f3 {[%clk 0:00:40]} 24... Bh3 {[%clk 0:00:36.1]} 25. g4
{[%clk 0:00:40.4]} 25... c3 {[%clk 0:00:26]} 26. Rxc3 {[%clk 0:00:37.8]} 26...
Re8 {[%clk 0:00:10.4]} 27. Re3 {[%clk 0:00:37.5]} 27... Rd8 {[%clk 0:00:02.1]}
28. Ne4 {[%clk 0:00:33.5]} 28... Nd5 {[%clk 0:00:02.1]} 29. Bxg7 {[%clk
0:00:24.6]} 29... Kxg7 {[%clk 0:00:03]} 30. Rd3 {[%clk 0:00:21.5]} 30... f6
{[%clk 0:00:03.9]} 31. Qd2 {[%clk 0:00:20.5]} 31... h5 {[%clk 0:00:01.4]} 32.
Rd1 {[%clk 0:00:19.7]} 32... hxg4 {[%clk 0:00:01.1]} 33. Rxd5 {[%clk 0:00:20.2]}
33... Rxd5 {[%clk 0:00:01.7]} 34. Qxd5 {[%clk 0:00:20.9]} 34... Qc8 {[%clk
0:00:02]} 35. Qd7+ {[%clk 0:00:20.9]} 35... Qxd7 {[%clk 0:00:02.6]} 36. Rxd7+
{[%clk 0:00:21.6]} 36... Kh6 {[%clk 0:00:03.5]} 37. Nf2 {[%clk 0:00:22.1]} 37...
a5 {[%clk 0:00:02.3]} 38. Nxh3 {[%clk 0:00:22.1]} 38... gxh3 {[%clk 0:00:03.2]}
39. Kh2 {[%clk 0:00:22.9]} 1-0